bitfinex/quotes_BTCUSD_20241002
["timestamp","ask_amount","ask_price","bid_price","bid_amount"]
[1727883908134,0.00164,61947.0,61946.0,0.20796167]
[1727883908379,0.00264,61947.0,61946.0,0.29548999]
[1727883909084,0.00264,61947.0,61946.0,0.29226167]
[1727883910739,0.00264,61947.0,61946.0,0.20896167]
[1727883910980,0.00264,61947.0,61946.0,0.19681]
[1727883915007,0.00264,61947.0,61946.0,0.27943795]
[1727883915257,0.00264,61947.0,61946.0,0.27621]
[1727883915488,0.00264,61947.0,61946.0,0.28369621]
[1727883915960,0.00264,61947.0,61946.0,0.28047046]
[1727883917661,0.00264,61947.0,61946.0,0.44365717]
[1727883918151,0.00264,61947.0,61946.0,0.66661635]
[1727883918387,0.00264,61947.0,61946.0,0.54865717]
[1727883918609,0.00264,61947.0,61946.0,0.38047046]
[1727883918853,0.00264,61947.0,61946.0,0.28047046]
[1727883919362,0.00264,61947.0,61946.0,0.27847046]
[1727883919584,0.00364,61947.0,61946.0,0.28347046]
[1727883920505,0.00264,61947.0,61946.0,0.27847046]
[1727883920734,0.00164,61947.0,61946.0,0.27747046]
[1727883921211,0.00364,61947.0,61946.0,0.28747046]
[1727883921456,0.00364,61947.0,61946.0,0.28447046]
[1727883921457,0.00264,61947.0,61946.0,0.28447046]
[1727883921679,0.00364,61947.0,61946.0,0.29447046]
[1727883921904,0.00364,61947.0,61946.0,0.29247046]
[1727883924002,0.00364,61947.0,61946.0,0.20881]
[1727883925196,0.00264,61947.0,61946.0,0.19881]
[1727883925424,0.00264,61947.0,61946.0,0.20281]
[1727883925622,0.00264,61947.0,61946.0,0.19881]
[1727883925941,0.00164,61947.0,61946.0,0.19781]
[1727883926159,0.00164,61947.0,61946.0,0.19981]
[1727883926888,0.00164,61947.0,61946.0,0.20103836]
[1727883927111,0.00164,61947.0,61946.0,0.20303836]
[1727883927345,0.00164,61947.0,61946.0,0.28273836]
[1727883927582,0.00164,61947.0,61946.0,0.27951]
[1727883928071,0.00164,61947.0,61946.0,0.28273798]
[1727883928533,0.00164,61947.0,61946.0,0.27951]
[1727883930138,0.00164,61947.0,61946.0,0.28377924]
[1727883930328,0.00164,61947.0,61946.0,0.20407924]
[1727883932622,0.00164,61947.0,61946.0,0.20730715]
[1727883933056,0.00164,61947.0,61946.0,0.20407924]
[1727883933539,0.00164,61947.0,61946.0,0.20730714]
[1727883933768,0.00164,61947.0,61946.0,0.37249385]
[1727883934011,0.00164,61947.0,61946.0,0.43811739]
[1727883934234,0.00164,61947.0,61946.0,0.46173453]
[1727883934727,0.00164,61947.0,61946.0,0.36326595]
[1727883934957,0.00264,61947.0,61946.0,0.43813122]
[1727883935176,0.00164,61947.0,61946.0,0.36326595]
[1727883935407,0.00164,61947.0,61946.0,0.36126595]
[1727883935648,0.00264,61947.0,61946.0,0.64776595]
[1727883935893,0.001542,61955.0,61954.0,0.19379]
[1727883936128,0.32624809,61979.0,61960.0,0.50840798]
[1727883936129,0.24464809,61979.0,61960.0,0.50840798]
[1727883936354,0.24464809,61979.0,61960.0,0.82609469]
[1727883936855,0.24464809,61979.0,61960.0,0.92046777]
[1727883937082,0.24464809,61979.0,61960.0,0.82809469]
[1727883937312,0.002642,61961.0,61960.0,0.92942129]
[1727883937546,0.002642,61961.0,61960.0,0.90581272]
[1727883938709,0.002642,61961.0,61960.0,0.83509469]
[1727883938950,0.001642,61961.0,61960.0,0.82809469]
[1727883939195,0.002642,61961.0,61960.0,0.84809469]
[1727883939452,0.001642,61961.0,61960.0,0.82809469]
[1727883939685,0.001642,61961.0,61960.0,0.91276333]
[1727883939927,0.002642,61961.0,61960.0,0.87109469]
[1727883940397,0.001642,61961.0,61960.0,0.95931075]
[1727883940625,0.002642,61961.0,61960.0,0.84809469]
[1727883940878,0.002642,61961.0,61960.0,0.90898661]
[1727883941111,0.002642,61961.0,61960.0,0.92298661]
[1727883941574,0.002642,61961.0,61960.0,0.85233933]
[1727883942617,0.002642,61961.0,61960.0,0.89232032]
[1727883943102,0.002642,61961.0,61960.0,0.89232807]
[1727883943548,0.002642,61961.0,61960.0,0.8452246]
[1727883944006,0.002642,61961.0,61960.0,0.91587981]
[1727883944237,0.002642,61961.0,61960.0,0.93887981]
[1727883944493,0.002642,61961.0,61960.0,0.93883632]
[1727883944724,0.002642,61961.0,61960.0,0.8682246]
[1727883944979,0.002642,61961.0,61960.0,0.91531376]
[1727883945443,0.002642,61961.0,61960.0,0.8682246]
[1727883945695,0.002642,61961.0,61960.0,0.91531376]
[1727883946644,0.002642,61961.0,61960.0,0.8452246]
[1727883954901,0.002642,61961.0,61960.0,0.7638246]
[1727883955795,0.002642,61961.0,61960.0,0.7744724]
[1727883956981,0.002642,61961.0,61960.0,0.6783724]
[1727883957458,0.002642,61961.0,61960.0,0.19417171]
[1727883957927,0.002642,61961.0,61960.0,0.38872112]
[1727883958155,0.001642,61961.0,61960.0,0.38149378]
[1727883958627,0.001642,61961.0,61960.0,0.37349378]
[1727883958628,0.002642,61961.0,61960.0,0.37349378]
[1727883958844,0.002642,61961.0,61960.0,0.47349378]
[1727883959086,0.001642,61961.0,61960.0,0.46749378]
[1727883959317,0.001642,61961.0,61960.0,0.46913378]
[1727883959539,0.001642,61961.0,61960.0,0.47513378]
[1727883959540,0.002642,61961.0,61960.0,0.47513378]
[1727883960478,0.002642,61961.0,61960.0,0.48113378]
[1727883961843,0.002642,61961.0,61960.0,0.47513378]
[1727883962070,0.003642,61961.0,61960.0,0.48913378]
[1727883962757,0.003642,61961.0,61960.0,0.48713378]
[1727883964797,0.003642,61961.0,61960.0,0.32394707]
[1727883965029,0.003642,61961.0,61960.0,0.22394707]
[1727883965539,0.003642,61961.0,61960.0,0.22717431]
[1727883965759,0.003642,61961.0,61960.0,0.22394707]
[1727883965986,0.001642,61961.0,61960.0,0.20394707]
[1727883966219,0.003642,61961.0,61960.0,0.21794707]
[1727883966445,0.002642,61961.0,61960.0,0.20994707]
[1727883966888,0.003642,61961.0,61960.0,0.22394707]
[1727883967582,0.002642,61961.0,61960.0,0.21794707]
[1727883968051,0.002642,61961.0,61960.0,0.18556707]
[1727883968052,0.090442,61961.0,61960.0,0.18556707]
[1727883968280,0.185242,61961.0,61960.0,0.19056707]
[1727883968503,0.184242,61961.0,61960.0,0.17656707]
[1727883968731,0.183242,61961.0,61960.0,0.0122878]
[1727883968964,0.20954602,61961.0,61960.0,0.0262878]
[1727883969221,0.37093702,61961.0,61960.0,0.00564]
[1727883969443,0.37193702,61961.0,61960.0,0.01164]
[1727883969665,0.37093702,61961.0,61960.0,0.01631106]
[1727883969886,0.0843,61950.0,61949.0,0.161423]
[1727883970108,0.1823,61950.0,61949.0,0.161423]
[1727883970820,0.0843,61950.0,61949.0,0.161423]
[1727883971042,0.0843,61950.0,61949.0,0.193803]
[1727883971504,0.0793,61950.0,61949.0,0.19703121]
[1727883971728,0.005,61956.0,61954.0,0.03238]
[1727883971961,0.005,61956.0,61955.0,0.161407]
[1727883972195,0.005,61956.0,61955.0,0.193787]
[1727883973384,0.0955,61960.0,61956.0,0.03238]
[1727883973385,0.005,61960.0,61956.0,0.03238]
[1727883973611,0.005,61960.0,61959.0,0.193777]
[1727883973836,0.005,61960.0,61959.0,0.19700458]
[1727883974782,0.006642,61961.0,61960.0,0.193774]
[1727883976175,0.006642,61961.0,61960.0,0.198774]
[1727883976625,0.096942,61961.0,61960.0,0.198774]
[1727883977115,0.096942,61961.0,61960.0,0.199774]
[1727883977799,0.1222449,61961.0,61960.0,0.199774]
[1727883981250,0.174742,61961.0,61960.0,0.006]
[1727883981492,0.459133,61961.0,61960.0,0.006]
[1727883981762,0.005,61950.0,61949.0,0.484264]
[1727883982241,0.005,61950.0,61949.0,0.161423]
[1727883982474,0.005,61949.0,61948.0,0.161423]
[1727883982717,0.005,61949.0,61944.0,0.322871]
[1727883982988,0.005,61946.0,61945.0,0.161432]
[1727883983931,0.0809,61946.0,61945.0,0.161432]
[1727883984877,0.0809,61946.0,61945.0,0.161433]
[1727883985117,0.005,61943.0,61942.0,0.51752]
[1727883985832,0.03030955,61943.0,61942.0,0.51752]
[1727883987056,0.03030955,61943.0,61942.0,0.52152]
[1727883987334,0.03030955,61943.0,61942.0,0.00482]
[1727883987566,0.05330955,61943.0,61942.0,0.00482]
[1727883987792,0.028,61943.0,61942.0,0.00482]
[1727883988038,0.3009,61943.0,61942.0,0.00482]
[1727883988530,0.464338,61943.0,61942.0,0.00482]
[1727883989018,0.464338,61943.0,61942.0,0.00082]
[1727883989283,0.005,61932.0,61931.0,0.24382909]
[1727883989514,0.005,61925.0,61924.0,0.72829009]
[1727883990026,0.005,61925.0,61924.0,0.484461]
[1727883990767,0.0762,61927.0,61917.0,0.00082]
[1727883990768,0.005,61919.0,61917.0,0.00082]
[1727883990999,0.005,61919.0,61918.0,0.484505]
[1727883992726,0.005,61919.0,61918.0,0.486505]
[1727883992961,0.005,61919.0,61918.0,0.484505]
[1727883993443,0.005,61919.0,61918.0,0.485505]
[1727883994160,0.006,61919.0,61918.0,0.485505]
[1727883994406,0.006,61919.0,61918.0,0.486325]
[1727883994660,0.005,61919.0,61918.0,0.486325]
[1727883994881,0.006,61919.0,61918.0,0.486325]
[1727883996720,0.001,61919.0,61918.0,0.518705]
[1727883996964,0.001,61919.0,61918.0,0.68189171]
[1727883997231,0.001,61919.0,61918.0,0.87619171]
[1727883997502,0.24382909,61931.0,61930.0,0.38048598]
[1727883997728,0.24382909,61931.0,61930.0,0.46198598]
[1727883997958,0.005,61940.0,61939.0,0.193829]
[1727883998443,0.005,61940.0,61939.0,0.03238]
[1727883998695,0.005,61940.0,61939.0,0.193829]
[1727883999162,0.005,61940.0,61939.0,0.03238]
[1727883999402,0.005,61940.0,61939.0,0.516726]
[1727883999636,0.00164,61942.0,61939.0,0.516726]
[1727883999637,0.00664,61942.0,61940.0,0.322893]
[1727883999922,0.00664,61942.0,61941.0,0.193823]
[1727883999923,0.00164,61942.0,61941.0,0.193823]
[1727884000162,0.00164,61942.0,61941.0,0.19702202]
[1727884000853,0.00764,61942.0,61941.0,0.193823]
[1727884001301,0.00864,61942.0,61941.0,0.195823]
[1727884002007,0.00364,61942.0,61941.0,0.195823]
[1727884002246,0.00531142,61953.0,61952.0,0.161415]
[1727884002516,0.24382909,61955.0,61954.0,0.16141]
[1727884003009,0.24382909,61955.0,61952.0,0.322829]
[1727884003010,0.023,61958.0,61952.0,0.322829]
[1727884003280,0.023,61959.0,61958.0,0.161399]
[1727884004690,0.034,61959.0,61958.0,0.161399]
[1727884005200,0.161415,61952.0,61940.0,0.322893]
[1727884005446,0.161415,61952.0,61950.0,0.24382909]
[1727884005447,0.023,61951.0,61950.0,0.24382909]
[1727884005687,0.1021,61951.0,61950.0,0.16142]
[1727884006671,0.1021,61951.0,61943.0,0.03238]
[1727884006925,0.023,61949.0,61944.0,0.322871]
[1727884007159,0.023,61949.0,61948.0,0.161425]
[1727884007395,0.023,61950.0,61948.0,0.161425]
[1727884007678,0.56664709,61955.0,61943.0,0.03238]
[1727884007679,0.24382909,61954.0,61943.0,0.03238]
[1727884007914,0.023,61953.0,61950.0,0.161417]
[1727884008160,0.023,61953.0,61946.0,0.322858]
[1727884008161,0.023,61953.0,61935.0,0.03238]
[1727884008417,0.023,61945.0,61942.0,0.161439]
[1727884008660,0.023,61945.0,61942.0,0.161438]
[1727884008910,0.023,61946.0,61942.0,0.322882]
[1727884009160,0.24582909,61951.0,61940.0,0.322892]
[1727884009161,0.322854,61948.0,61940.0,0.322892]
[1727884009412,0.322873,61944.0,61939.0,0.161448]
[1727884009631,0.322873,61944.0,61936.0,0.322913]
[1727884009632,0.023,61943.0,61936.0,0.322913]
[1727884009878,0.023,61941.0,61938.0,0.161449]
[1727884010145,0.023,61940.0,61938.0,0.161449]
[1727884010633,0.023,61943.0,61935.0,0.03238]
[1727884010853,0.023,61943.0,61941.0,0.161442]
[1727884011297,0.023,61943.0,61938.0,0.322902]
[1727884011580,0.023,61941.0,61939.0,0.161448]
[1727884011818,0.023,61941.0,61934.0,0.16146]
[1727884011819,0.023,61937.0,61934.0,0.16146]
[1727884012055,0.023,61937.0,61936.0,0.161456]
[1727884012289,0.023,61939.0,61936.0,0.161456]
[1727884012510,0.023,61939.0,61937.0,0.161454]
[1727884012736,0.56971009,61943.0,61930.0,0.322945]
[1727884012737,0.123,61942.0,61934.0,0.322924]
[1727884012963,0.123,61942.0,61930.0,0.18663398]
[1727884012964,0.023,61945.0,61944.0,0.161434]
[1727884013681,0.023,61945.0,61935.0,0.03238]
[1727884013682,0.34382909,61952.0,61938.0,0.18663398]
[1727884013919,0.34382909,61952.0,61950.0,0.161418]
[1727884014389,0.09378667,61953.0,61949.0,0.322843]
[1727884014629,0.19378667,61953.0,61950.0,0.161419]
[1727884015094,0.123,61952.0,61950.0,0.161419]
[1727884015541,0.123,61952.0,61951.0,0.161417]
[1727884015545,0.123,61952.0,61948.0,0.322848]
[1727884015761,0.123,61952.0,61949.0,0.161421]
[1727884016208,0.023,61949.0,61941.0,0.161442]
[1727884016469,0.13,61952.0,61941.0,0.161442]
[1727884016470,0.023,61943.0,61941.0,0.161442]
[1727884016935,0.023,61946.0,61942.0,0.161441]
[1727884017171,0.161433,61945.0,61942.0,0.161441]
[1727884017400,0.023,61944.0,61942.0,0.161441]
[1727884017624,0.184431,61946.0,61942.0,0.161441]
[1727884017864,0.322856,61947.0,61942.0,0.161441]
[1727884017865,0.027,61943.0,61942.0,0.161441]
[1727884019333,0.023,61945.0,61942.0,0.161441]
[1727884019556,0.023,61945.0,61943.0,0.161436]
[1727884019787,0.028,61944.0,61943.0,0.161436]
[1727884020276,0.023,61943.0,61942.0,0.161441]
[1727884020511,0.028,61945.0,61943.0,0.00082]
[1727884020744,0.023,61945.0,61943.0,0.00082]
[1727884020994,0.184436,61944.0,61943.0,0.00082]
[1727884021257,0.188436,61944.0,61943.0,0.00082]
[1727884022489,0.184436,61944.0,61943.0,0.00082]
[1727884022739,0.4854773,61944.0,61943.0,0.00082]
[1727884023457,0.360236,61944.0,61943.0,0.00082]
[1727884023705,0.364236,61944.0,61943.0,0.00082]
[1727884024180,0.377236,61944.0,61943.0,0.00082]
[1727884024911,0.373236,61944.0,61943.0,0.00082]
[1727884025150,0.322931,61933.0,61919.0,0.27620909]
[1727884025376,0.023,61923.0,61919.0,0.27620909]
[1727884025613,0.023,61923.0,61919.0,0.24382909]
[1727884025857,0.161499,61920.0,61918.0,0.00082]
[1727884026091,0.184501,61919.0,61918.0,0.00082]
[1727884026613,0.0827,61921.0,61918.0,0.00082]
[1727884026614,0.023,61920.0,61918.0,0.00082]
[1727884027324,0.003,61920.0,61918.0,0.00082]
[1727884028125,0.004,61920.0,61918.0,0.00082]
[1727884028352,0.161501,61919.0,61918.0,0.00082]
[1727884028576,0.44128265,61919.0,61918.0,0.00082]
[1727884028781,0.81521276,61919.0,61918.0,0.00082]
[1727884029222,0.84021276,61919.0,61918.0,0.00082]
[1727884029665,0.73468265,61919.0,61918.0,0.00082]
[1727884029882,0.74768265,61919.0,61918.0,0.00082]
[1727884030288,0.184553,61899.0,61898.0,0.00164]
[1727884031142,0.023,61900.0,61898.0,0.00164]
[1727884031347,0.123,61901.0,61898.0,0.163194]
[1727884031939,0.10471963,61901.0,61899.0,0.161551]
[1727884032162,0.10471963,61901.0,61898.0,0.00164]
[1727884032395,0.023,61902.0,61899.0,0.161553]
[1727884032625,0.023,61907.0,61899.0,0.323105]
[1727884032853,0.023,61907.0,61898.0,0.00164]
[1727884032854,0.01688667,61906.0,61898.0,0.00164]
[1727884033084,0.011,61899.0,61898.0,0.00164]
[1727884033361,0.011,61899.0,61898.0,0.163196]
[1727884033581,0.24382909,61906.0,61904.0,0.161538]
[1727884034041,0.014,61907.0,61906.0,0.161535]
[1727884034262,0.01688667,61913.0,61902.0,0.323091]
[1727884034495,0.01688667,61913.0,61898.0,0.00164]
[1727884034740,0.17840367,61913.0,61909.0,0.161526]
[1727884035427,0.01688667,61913.0,61903.0,0.03238]
[1727884035658,0.03988667,61913.0,61908.0,0.323055]
[1727884035911,0.03988667,61913.0,61910.0,0.161524]
[1727884036143,0.03988667,61913.0,61909.0,0.323052]
[1727884036376,0.03988667,61913.0,61904.0,0.323076]
[1727884036377,0.161529,61909.0,61904.0,0.323076]
[1727884036622,0.32304,61912.0,61891.0,0.323148]
[1727884036623,0.0787,61912.0,61898.0,0.03402]
[1727884036848,0.323064,61908.0,61898.0,0.03402]
[1727884037076,0.323073,61906.0,61898.0,0.03402]
[1727884037320,0.023,61907.0,61898.0,0.03402]
[1727884037546,0.24382909,61907.0,61898.0,0.00164]
[1727884037770,0.161545,61903.0,61899.0,0.161553]
[1727884038006,0.323081,61904.0,61899.0,0.161553]
[1727884038241,0.161546,61902.0,61898.0,0.163195]
[1727884038484,0.161553,61899.0,61898.0,0.00164]
[1727884038727,0.023,61908.0,61907.0,0.161531]
[1727884038944,0.24382909,61905.0,61898.0,0.00164]
[1727884039180,0.023,61908.0,61898.0,0.163195]
[1727884039181,0.161548,61902.0,61898.0,0.163195]
[1727884039406,0.161548,61902.0,61899.0,0.161552]
[1727884039407,0.023,61901.0,61899.0,0.161552]
[1727884039621,0.023,61901.0,61898.0,0.00164]
[1727884039845,0.023,61900.0,61898.0,0.163194]
[1727884040297,0.023,61900.0,61898.0,0.00164]
[1727884040298,0.184553,61899.0,61898.0,0.00164]
[1727884042697,0.194553,61899.0,61898.0,0.00164]
[1727884043116,0.205553,61899.0,61898.0,0.00164]
[1727884046659,0.59465383,61899.0,61898.0,0.00164]
[1727884046891,0.481453,61899.0,61898.0,0.00164]
[1727884047570,0.470453,61899.0,61898.0,0.00164]
[1727884048293,0.45614938,61899.0,61898.0,0.00164]
[1727884048957,0.46303605,61899.0,61898.0,0.00164]
[1727884049163,0.47703605,61899.0,61898.0,0.00164]
[1727884049612,0.49103605,61899.0,61898.0,0.00164]
[1727884050250,0.65422276,61899.0,61898.0,0.00164]
[1727884050674,0.65622276,61899.0,61898.0,0.00164]
[1727884051345,0.64222276,61899.0,61898.0,0.00164]
[1727884051558,0.65622276,61899.0,61898.0,0.00164]
[1727884051773,0.66045236,61899.0,61898.0,0.00164]
[1727884051996,0.64645236,61899.0,61898.0,0.00164]
[1727884052209,0.161566,61894.0,61892.0,0.00082]
[1727884052426,0.359574,61891.0,61883.0,0.00082]
[1727884053945,0.336574,61891.0,61883.0,0.00082]
[1727884054369,0.350574,61891.0,61890.0,0.00064]
[1727884054796,0.336574,61891.0,61890.0,0.00064]
[1727884055015,0.29974433,61891.0,61890.0,0.00064]
[1727884055265,0.24774433,61891.0,61890.0,0.00064]
[1727884055486,0.22474433,61891.0,61890.0,0.00064]
[1727884055925,0.23874433,61891.0,61890.0,0.00064]
[1727884056125,0.014,61891.0,61890.0,0.162216]
[1727884056335,0.189574,61891.0,61890.0,0.00064]
[1727884056557,0.028,61891.0,61890.0,0.00064]
[1727884056762,0.356642,61913.0,61890.0,0.00064]
[1727884056971,0.175574,61891.0,61890.0,0.00064]
[1727884057179,0.188574,61891.0,61890.0,0.00064]
[1727884057390,0.197574,61891.0,61890.0,0.00064]
[1727884057594,0.192574,61891.0,61890.0,0.00064]
[1727884057824,0.008,61891.0,61890.0,0.162216]
[1727884060229,0.017,61891.0,61890.0,0.257016]
[1727884060497,0.017,61891.0,61890.0,0.289396]
[1727884060699,0.017,61891.0,61890.0,0.368396]
[1727884061420,0.001642,61899.0,61898.0,0.161556]
[1727884061623,0.001642,61899.0,61898.0,0.272036]
[1727884061897,0.001642,61899.0,61898.0,0.239656]
[1727884062746,0.001642,61899.0,61892.0,0.323139]
[1727884062747,0.023,61898.0,61892.0,0.323139]
[1727884062956,0.023,61898.0,61896.0,0.16156]
[1727884063178,0.023,61898.0,61895.0,0.161562]
[1727884063386,0.023,61898.0,61894.0,0.323132]
[1727884063637,0.023,61898.0,61897.0,0.161558]
[1727884064274,0.027,61898.0,61897.0,0.161558]
[1727884064919,0.023,61898.0,61897.0,0.161558]
[1727884065355,0.001642,61899.0,61898.0,0.161556]
[1727884066935,0.001642,61899.0,61898.0,0.166556]
[1727884067147,0.001642,61899.0,61898.0,0.161556]
[1727884067847,0.003642,61899.0,61898.0,0.161556]
[1727884068337,0.023,61898.0,61897.0,0.161557]
[1727884068559,0.023,61898.0,61896.0,0.161559]
[1727884069035,0.023,61898.0,61890.0,0.00064]
[1727884069036,0.184557,61898.0,61893.0,0.323134]
[1727884069264,0.184557,61898.0,61890.0,0.00064]
[1727884069561,0.184557,61898.0,61893.0,0.161569]
[1727884070027,0.023,61895.0,61890.0,0.00064]
[1727884070265,0.184571,61893.0,61890.0,0.00064]
[1727884070482,0.023,61893.0,61890.0,0.00064]
[1727884070741,0.184574,61891.0,61890.0,0.00064]
[1727884070957,0.023,61891.0,61890.0,0.00064]
[1727884071181,0.184574,61891.0,61890.0,0.00064]
[1727884072160,0.46484927,61891.0,61890.0,0.00064]
[1727884072615,0.63951699,61891.0,61890.0,0.00064]
[1727884072843,0.64351699,61891.0,61890.0,0.00064]
[1727884073073,0.57484927,61891.0,61890.0,0.00064]
[1727884074526,0.033,61891.0,61890.0,0.162216]
[1727884074980,0.01,61891.0,61890.0,0.162216]
[1727884077087,0.26235776,61899.0,61890.0,0.162216]
[1727884077088,0.01852867,61899.0,61891.0,0.03238]
[1727884077359,0.001642,61899.0,61898.0,0.193936]
[1727884077574,0.001642,61899.0,61898.0,0.37536664]
[1727884077829,0.001642,61899.0,61898.0,0.372136]
[1727884078066,0.001642,61913.0,61909.0,0.0985]
[1727884078289,0.001642,61913.0,61912.0,0.193899]
[1727884078532,0.24382909,61917.0,61916.0,0.161509]
[1727884078533,0.14547109,61917.0,61916.0,0.161509]
[1727884078765,0.24382909,61924.0,61923.0,0.19387]
[1727884079485,0.24382909,61931.0,61930.0,0.161472]
[1727884079965,0.01688667,61939.0,61927.0,0.322957]
[1727884080195,0.24382909,61934.0,61931.0,0.161468]
[1727884080422,0.01688667,61939.0,61927.0,0.322957]
[1727884080661,0.01688667,61939.0,61933.0,0.322927]
[1727884080883,0.01688667,61939.0,61938.0,0.161451]
[1727884081384,0.01688667,61939.0,61934.0,0.322922]
[1727884081600,0.01688667,61939.0,61936.0,0.161454]
[1727884082065,0.0731135,61938.0,61915.0,0.323023]
[1727884082316,0.0731135,61938.0,61929.0,0.32295]
[1727884082317,0.023,61936.0,61929.0,0.32295]
[1727884082558,0.26682909,61936.0,61927.0,0.001]
[1727884082786,0.023,61936.0,61927.0,0.001]
[1727884083035,0.02788667,61939.0,61925.0,0.03238]
[1727884083036,0.023,61938.0,61925.0,0.03238]
[1727884083260,0.27682909,61938.0,61937.0,0.161454]
[1727884083484,0.01,61938.0,61937.0,0.161454]
[1727884083751,0.01688667,61939.0,61933.0,0.322926]
[1727884083973,0.322844,61950.0,61929.0,0.31265527]
[1727884084218,0.007,61936.0,61935.0,0.161459]
[1727884084475,0.007,61936.0,61935.0,0.55363845]
[1727884084692,0.013,61936.0,61935.0,0.55041427]
[1727884085406,0.007,61936.0,61935.0,0.55041427]
[1727884085646,0.007,61936.0,61935.0,0.193839]
[1727884085881,0.00164,61939.0,61935.0,0.03238]
[1727884086125,0.023,61935.0,61927.0,0.03238]
[1727884086346,0.023,61935.0,61930.0,0.16147]
[1727884086347,0.023,61934.0,61930.0,0.16147]
[1727884086571,0.023,61934.0,61927.0,0.355339]
[1727884086794,0.161463,61934.0,61930.0,0.161472]
[1727884087017,0.023,61935.0,61931.0,0.161469]
[1727884087247,0.161463,61934.0,61931.0,0.161469]
[1727884087481,0.161463,61934.0,61927.0,0.03238]
[1727884087482,0.023,61936.0,61934.0,0.161461]
[1727884087726,0.00164,61959.0,61955.0,0.244407]
[1727884087946,0.24382909,61958.0,61955.0,0.276787]
[1727884088175,0.00164,61959.0,61955.0,0.276787]
[1727884088881,0.00164,61959.0,61955.0,0.244407]
[1727884089105,0.00164,61959.0,61955.0,0.277787]
[1727884089556,0.00164,61959.0,61955.0,0.28101426]
[1727884090209,0.00364,61956.0,61955.0,0.28101426]
[1727884090710,0.00164,61956.0,61955.0,0.44420097]
[1727884090943,0.00164,61959.0,61958.0,0.262399]
[1727884091180,0.00164,61959.0,61958.0,0.71008188]
[1727884091419,0.001642,61961.0,61960.0,0.263394]
[1727884091643,0.001642,61961.0,61960.0,0.45985975]
[1727884091871,0.001642,61961.0,61960.0,0.45996071]
[1727884092123,0.001642,61975.0,61971.0,0.47502027]
[1727884092339,0.24547109,61975.0,61971.0,0.71810698]
[1727884092581,0.001642,61975.0,61971.0,0.71810698]
[1727884093533,0.002642,61972.0,61971.0,0.72410698]
[1727884093792,0.003642,61972.0,61971.0,0.73610698]
[1727884094004,0.002642,61972.0,61971.0,0.72410698]
[1727884094897,0.001642,61972.0,61971.0,0.71810698]
[1727884095411,0.001,61982.0,61978.0,0.262347]
[1727884095657,0.001,61982.0,61981.0,0.58199427]
[1727884095906,0.001,61982.0,61981.0,0.74518098]
[1727884096183,0.00164,61995.0,61988.0,0.294701]
[1727884096431,0.00164,61995.0,61994.0,0.47696027]
[1727884096666,0.001642,61998.0,61997.0,0.194678]
[1727884096885,0.001642,61998.0,61997.0,0.40227563]
[1727884097334,0.001642,61998.0,61997.0,0.35786471]
[1727884097562,0.001642,61998.0,61997.0,0.40327563]
[1727884097788,0.001642,61998.0,61997.0,0.40737268]
[1727884098250,0.001642,61998.0,61997.0,0.36196176]
[1727884099174,0.001642,61998.0,61997.0,0.35786471]
[1727884099618,0.001642,61998.0,61997.0,0.36886471]
[1727884099839,0.001642,61998.0,61997.0,0.35786471]
[1727884100332,0.001642,61998.0,61997.0,0.36886471]
[1727884101014,0.001642,61998.0,61997.0,0.205678]
[1727884101239,0.002642,61998.0,61997.0,0.38286471]
[1727884101460,0.0001069,62005.0,62004.0,0.194659]
[1727884103042,0.0001069,62005.0,62004.0,0.208659]
[1727884103274,0.0001069,62005.0,62004.0,0.194659]
[1727884103549,0.24382909,62020.0,62004.0,0.194659]
[1727884103550,2e-07,62028.0,62027.0,0.16122]
[1727884103779,0.24382909,62037.0,62031.0,0.193589]
[1727884104269,0.44248227,62032.0,62031.0,0.05450542]
[1727884104487,0.44248227,62032.0,62012.0,0.322515]
[1727884104488,0.33165058,62032.0,62006.0,0.001]
[1727884104717,0.001,62032.0,62027.0,0.24382909]
[1727884104951,0.001,62032.0,62027.0,0.008]
[1727884104952,0.001,62028.0,62027.0,0.008]
[1727884105170,0.162217,62028.0,62027.0,0.008]
[1727884105430,0.001,62028.0,62027.0,0.04038]
[1727884105645,0.024,62028.0,62027.0,0.04038]
[1727884105875,0.185217,62028.0,62027.0,0.04038]
[1727884106101,0.024,62028.0,62027.0,0.04038]
[1727884106335,0.185217,62028.0,62027.0,0.04038]
[1727884106555,0.161223,62026.0,62022.0,0.03238]
[1727884106777,0.023,62030.0,62022.0,0.03238]
[1727884107005,0.161221,62027.0,62022.0,0.03238]
[1727884107218,0.161363,62026.0,62022.0,0.03238]
[1727884107444,0.00014,62026.0,62022.0,0.03238]
[1727884107886,0.00014,62026.0,62021.0,0.03238]
[1727884108146,0.00014,62026.0,62023.0,0.03338]
[1727884108360,0.00014,62026.0,62023.0,0.03238]
[1727884108582,0.161363,62026.0,62023.0,0.03238]
[1727884108816,0.00014,62026.0,62025.0,0.161225]
[1727884109063,0.00014,62026.0,62025.0,0.193605]
[1727884109275,0.00014,62026.0,62025.0,0.25001657]
[1727884109508,0.00014,62026.0,62025.0,0.193605]
[1727884109737,0.00014,62026.0,62025.0,0.194605]
[1727884110419,0.00014,62026.0,62025.0,0.21082896]
[1727884111553,0.00014,62026.0,62025.0,0.212605]
[1727884112036,0.00014,62026.0,62025.0,0.199605]
[1727884112470,0.00014,62026.0,62025.0,0.209605]
[1727884112690,0.00014,62026.0,62025.0,0.204605]
[1727884113146,0.00014,62026.0,62025.0,0.45943409]
[1727884113390,0.00014,62026.0,62025.0,0.228605]
[1727884113600,0.00014,62026.0,62025.0,0.194605]